bitfinex/quotes_BTCUSD_20250614
["timestamp","ask_amount","ask_price","bid_price","bid_amount"]
[1749912444704,0.44797201,104990.0,104980.0,0.2720393]
[1749912445343,0.43844739,104990.0,104980.0,0.2720393]
[1749912445575,0.44797201,104990.0,104980.0,0.2720393]
[1749912445792,0.45749672,104990.0,104980.0,0.2720393]
[1749912446237,0.37019461,104990.0,104980.0,0.2720393]
[1749912446465,0.40987461,104990.0,104980.0,1.02999573]
[1749912446679,0.40987461,104990.0,104980.0,0.2720393]
[1749912447979,0.41939851,104990.0,104980.0,0.2720393]
[1749912448187,0.40987461,104990.0,104980.0,0.2720393]
[1749912449495,0.4193986,104990.0,104980.0,0.2720393]
[1749912449707,0.40987461,104990.0,104980.0,0.2720393]
[1749912449934,0.41939851,104990.0,104980.0,0.2720393]
[1749912450352,0.40987461,104990.0,104980.0,0.2720393]
[1749912450990,0.4193986,104990.0,104980.0,0.2720393]
[1749912452299,0.40987461,104990.0,104980.0,0.2720393]
[1749912452510,0.41939851,104990.0,104980.0,0.2720393]
[1749912453344,0.07939851,104990.0,104980.0,0.36818852]
[1749912454881,0.03971851,104990.0,104980.0,0.36818852]
[1749912455078,0.07939851,104990.0,104980.0,0.36818852]
[1749912455285,0.07939851,104990.0,104980.0,0.2720393]
[1749912455494,0.08892259,104990.0,104980.0,0.2720393]
[1749912455726,0.07939851,104990.0,104980.0,0.2720393]
[1749912456149,0.06987461,104990.0,104980.0,0.2720393]
[1749912456377,0.07939851,104990.0,104980.0,0.2720393]
[1749912457698,0.06987461,104990.0,104980.0,0.2720393]
[1749912459004,0.41939851,104990.0,104980.0,0.2720393]
[1749912459209,0.40987461,104990.0,104980.0,0.2720393]
[1749912459624,0.41939851,104990.0,104980.0,0.2720393]
[1749912460909,0.07939851,104990.0,104980.0,0.2720393]
[1749912461322,0.06987461,104990.0,104980.0,0.2720393]
[1749912464767,0.03019461,104990.0,104980.0,0.2720393]
[1749912464976,0.03019461,104990.0,104980.0,0.36818852]
[1749912465198,0.03019461,104990.0,104980.0,0.2720393]
[1749912465873,0.03971851,104990.0,104980.0,0.2720393]
[1749912466315,0.3892425,104990.0,104980.0,0.2720393]
[1749912466741,0.37971851,104990.0,104980.0,0.2720393]
[1749912467617,0.38924268,104990.0,104980.0,0.2720393]
[1749912467861,0.38924259,104990.0,104980.0,0.2720393]
[1749912468090,0.4082912,104990.0,104980.0,0.4277593]
[1749912468513,0.39876676,104990.0,104980.0,0.4277593]
[1749912468793,0.40829111,104990.0,104980.0,0.4277593]
[1749912472697,0.40829102,104990.0,104980.0,0.4277593]
[1749912474095,0.41781546,104990.0,104980.0,0.4277593]
[1749912474321,0.40829102,104990.0,104980.0,0.4277593]
[1749912474530,0.41781546,104990.0,104980.0,0.4277593]
[1749912474749,0.40829102,104990.0,104980.0,0.4277593]
[1749912475592,0.48393651,104990.0,104980.0,0.2720393]
[1749912475812,0.4971678,104990.0,104980.0,0.4276393]
[1749912476028,0.43104738,104990.0,104980.0,0.4276393]
[1749912476265,0.40829156,104990.0,104980.0,0.4276393]
[1749912477178,0.39876712,104990.0,104980.0,0.4276393]
[1749912477392,0.40829156,104990.0,104980.0,0.4276393]
[1749912479817,0.59878589,104990.0,104980.0,0.25298906]
[1749912480054,0.63106696,104990.0,104980.0,0.42767958]
[1749912480260,0.63106696,104990.0,104980.0,0.42767903]
[1749912480731,5.45574753,104990.0,104980.0,0.24346344]
[1749912480990,5.45574753,104990.0,104980.0,0.25298861]
[1749912482102,5.45574753,104990.0,104980.0,0.26251368]
[1749912482551,5.2652532,104990.0,104980.0,0.27203866]
[1749912483444,5.25572849,104990.0,104980.0,0.27203866]
[1749912484349,5.2557275,104990.0,104980.0,0.27203866]
[1749912485036,0.44287433,104990.0,104980.0,0.27203866]
[1749912485262,0.41059461,104990.0,104980.0,0.27203866]
[1749912486743,0.37019461,104990.0,104980.0,0.27203866]
[1749912486965,0.41059461,104990.0,104980.0,0.27203866]
[1749912490491,0.41059461,104990.0,104980.0,0.36828042]
[1749912491135,0.37019461,104990.0,104980.0,0.36828042]
[1749912491789,0.37019461,104990.0,104980.0,0.46442964]
[1749912492698,0.03019461,104990.0,104980.0,1.22238607]
[1749912493133,0.001,104990.0,104980.0,1.22238607]
[1749912494041,0.001,104990.0,104980.0,0.46442964]
[1749912495139,0.001,104990.0,104980.0,1.22238607]
[1749912495579,0.001,104990.0,104980.0,1.25100407]
[1749912497599,0.34,105000.0,104990.0,0.25456738]
[1749912497806,0.34,105000.0,104990.0,0.60279836]
[1749912497995,0.34,105000.0,104990.0,0.50664914]
[1749912500087,0.341,105000.0,104990.0,0.50664914]
[1749912500537,0.001,105000.0,104990.0,0.50664914]
[1749912503974,0.001,105000.0,104990.0,1.26460557]
[1749912504184,0.001,105000.0,104990.0,0.60279836]
[1749912504400,0.001,105000.0,104990.0,0.63141336]
[1749912505036,0.001,105000.0,104990.0,0.53506414]
[1749912510537,0.001,105000.0,104990.0,0.37942414]
[1749912511165,0.001,105000.0,104990.0,0.53502414]
[1749912511390,0.001,105000.0,104990.0,0.53498414]
[1749912511619,0.001,105000.0,104990.0,0.37942414]
[1749912511847,0.001,105000.0,104990.0,0.53498414]
[1749912512685,0.001,105000.0,104990.0,0.61905371]
[1749912514893,0.001,105000.0,104990.0,0.53498414]
[1749912527958,0.001,105000.0,104990.0,1.29294057]
[1749912529349,0.42226281,105020.0,105010.0,0.21902565]
[1749912529578,0.38996117,105020.0,105010.0,0.21902565]
[1749912530664,0.39948253,105020.0,105010.0,0.21902565]
[1749912531179,0.40148253,105020.0,105010.0,0.21902565]
[1749912531842,0.40448253,105020.0,105010.0,0.21902565]
[1749912534979,0.40448253,105020.0,105010.0,0.2655189]
[1749912535616,0.40448253,105020.0,105010.0,0.21902565]
[1749912536486,0.39496117,105020.0,105010.0,0.21902565]
[1749912536925,0.39496117,105020.0,105010.0,0.25542565]
[1749912537137,0.40448253,105020.0,105010.0,0.25542565]
[1749912537597,0.39496117,105020.0,105010.0,0.25542565]
[1749912538034,0.40448244,105020.0,105010.0,0.25542565]
[1749912538737,0.41400389,105020.0,105010.0,0.25542565]
[1749912545060,0.42352552,105020.0,105010.0,0.25542565]
[1749912546552,0.44632195,105020.0,105010.0,0.25542565]
[1749912546987,0.43680032,105020.0,105010.0,0.25542565]
[1749912547199,0.42352552,105020.0,105010.0,0.25542565]
[1749912547438,0.41400389,105020.0,105010.0,0.25542565]
[1749912547673,0.40448244,105020.0,105010.0,0.25542565]
[1749912547883,0.41400389,105020.0,105010.0,0.25542565]
[1749912548302,0.43680032,105020.0,105010.0,0.25542565]
[1749912548733,0.42727887,105020.0,105010.0,0.25542565]
[1749912548919,0.39496117,105020.0,105010.0,0.25542565]
[1749912549176,0.38564,105020.0,105010.0,0.3019189]
[1749912549613,0.04564,105020.0,105010.0,0.3019189]
[1749912550073,0.04364,105020.0,105010.0,0.3019189]
[1749912550516,0.04364,105020.0,105010.0,0.25542565]
[1749912550744,0.42933053,105030.0,105020.0,0.2374048]
[1749912550965,5.46974725,105030.0,105020.0,0.2570048]
[1749912551178,5.47926815,105030.0,105020.0,0.2570048]
[1749912551393,5.48878887,105030.0,105020.0,0.2570048]
[1749912552263,5.48878878,105030.0,105020.0,0.2570048]
[1749912552721,5.49378878,105030.0,105020.0,0.2570048]
[1749912552942,5.49378941,105030.0,105020.0,0.2570048]
[1749912553794,5.48426851,105030.0,105020.0,0.2570048]
[1749912554247,5.49379004,105030.0,105020.0,0.25700498]
[1749912554477,5.49379004,105030.0,105020.0,0.26652643]
[1749912554700,5.5127645,105030.0,105020.0,0.27604779]
[1749912554929,5.50324351,105030.0,105020.0,0.27604779]
[1749912555149,5.51276441,105030.0,105020.0,0.27604779]
[1749912555821,5.50324351,105030.0,105020.0,0.27604779]
[1749912556265,5.4937227,105030.0,105020.0,0.27604779]
[1749912556491,5.5032436,105030.0,105020.0,0.27604779]
[1749912556738,5.4937227,105030.0,105020.0,0.27604779]
[1749912557185,5.50324324,105030.0,105020.0,0.27604779]
[1749912559079,5.49372234,105030.0,105020.0,0.27604779]
[1749912559299,5.50324315,105030.0,105020.0,0.27604779]
[1749912559526,5.51276405,105030.0,105020.0,0.27604779]
[1749912562904,5.07397879,105030.0,105020.0,0.27604779]
[1749912563578,5.08349942,105030.0,105020.0,0.27604779]
[1749912564008,5.09302041,105030.0,105020.0,0.27604779]
[1749912564680,5.27392183,105030.0,105020.0,0.25700498]
[1749912566738,5.64755713,105030.0,105020.0,0.25700498]
[1749912566947,5.62851569,105030.0,105020.0,0.24748344]
[1749912567164,5.39935769,105030.0,105020.0,0.24748344]
[1749912568251,5.38983679,105030.0,105020.0,0.23796181]
[1749912569174,5.38983679,105030.0,105020.0,0.24748362]
[1749912569409,5.3396758,105030.0,105020.0,0.24748362]
[1749912569626,5.3802358,105030.0,105020.0,0.24748362]
[1749912571848,5.3802358,105030.0,105020.0,0.038]
[1749912572072,5.3802358,105030.0,105020.0,0.2379619]
[1749912573180,0.19996163,105020.0,105010.0,0.20915805]
[1749912573432,0.20948362,105020.0,105010.0,0.21868077]
[1749912573662,0.20948362,105020.0,105010.0,0.2282034]
[1749912573885,0.20948362,105020.0,105010.0,0.25762593]
[1749912574112,0.21900543,105020.0,105010.0,0.25762593]
[1749912574650,0.21900543,105020.0,105010.0,0.26714837]
[1749912574883,0.24181375,105020.0,105010.0,0.26714837]
[1749912575315,0.24281375,105020.0,105010.0,0.27667072]
[1749912576190,0.24281375,105020.0,105010.0,0.25762593]
[1749912576632,0.24281375,105020.0,105010.0,0.26714837]
[1749912578656,0.24281375,105020.0,105010.0,0.27667072]
[1749912579545,0.24281375,105020.0,105010.0,0.26714837]
[1749912582000,0.24281375,105020.0,105010.0,0.25762593]
[1749912582440,0.24281375,105020.0,105010.0,0.26714837]
[1749912584210,0.24281375,105020.0,105010.0,0.25762593]
[1749912584653,0.24281375,105020.0,105010.0,0.27667072]
[1749912585334,0.28337375,105020.0,105010.0,0.25762593]
[1749912585550,0.28337375,105020.0,105010.0,0.26714837]
[1749912586845,0.27385203,105020.0,105010.0,0.41310593]
[1749912587722,0.27385203,105020.0,105010.0,0.42262837]
[1749912589481,0.08341167,105020.0,105010.0,0.42262837]
[1749912589716,0.08341167,105020.0,105010.0,0.43215063]
[1749912592996,0.09293357,105020.0,105010.0,0.43215063]
[1749912593445,0.16348696,105020.0,105010.0,0.26714837]
[1749912593673,0.36344886,105020.0,105010.0,0.26714837]
[1749912594117,0.29289547,105020.0,105010.0,0.26714837]
[1749912594948,0.28337393,105020.0,105010.0,0.25762593]
[1749912596293,0.28337393,105020.0,105010.0,0.26714828]
[1749912597364,0.28337393,105020.0,105010.0,0.25762593]
[1749912598230,0.28337393,105020.0,105010.0,0.26714837]
[1749912598445,0.28337393,105020.0,105010.0,0.27667072]
[1749912600358,0.37297136,105020.0,105010.0,0.26714837]
[1749912600590,0.27385212,105020.0,105010.0,0.2481034]
[1749912600815,0.25480823,105020.0,105010.0,0.39410086]
[1749912601256,0.25480823,105020.0,105010.0,0.40362358]
[1749912601493,0.25480823,105020.0,105010.0,0.41314621]
[1749912601729,0.25480823,105020.0,105010.0,0.39410086]
[1749912602166,0.25480823,105020.0,105010.0,0.40362358]
[1749912602396,0.25480823,105020.0,105010.0,0.24810358]
[1749912602896,0.25480823,105020.0,105010.0,0.25762621]
[1749912604889,0.25480823,105020.0,105010.0,0.24810358]
[1749912606191,0.25480823,105020.0,105010.0,0.25762621]
[1749912606612,0.25480823,105020.0,105010.0,0.24810358]
[1749912607116,0.3473448,105020.0,105010.0,0.24810339]
[1749912607759,0.59480823,105020.0,105010.0,0.0386]
[1749912608021,0.03809358,105000.0,104990.0,0.21906756]
[1749912608237,0.01904625,105000.0,104990.0,0.38419164]
[1749912608460,0.03809322,105000.0,104990.0,0.42249164]
[1749912608904,4.99914041,105000.0,104990.0,0.25736756]
[1749912609141,4.84099625,105000.0,104990.0,0.42253173]
[1749912609355,4.84099625,105000.0,104990.0,0.42557173]
[1749912609584,5.93547382,105000.0,104990.0,0.003]
[1749912609803,6.00192645,105000.0,104990.0,0.003]
[1749912610027,6.00292645,105000.0,104990.0,0.003]
[1749912610244,6.00291025,105000.0,104990.0,0.003]
[1749912610460,5.83563025,105000.0,104990.0,0.003]
[1749912610693,5.88466394,105000.0,104990.0,0.003]
[1749912610915,0.54001886,104990.0,104980.0,0.0385]
[1749912611141,5.33339818,104990.0,104980.0,0.0385]
[1749912611359,5.36141379,104990.0,104980.0,0.0385]
[1749912612057,5.36341379,104990.0,104980.0,0.0385]
[1749912612270,5.36341379,104990.0,104980.0,0.03897617]
[1749912612522,5.36541379,104990.0,104980.0,0.03897617]
[1749912612971,5.50606301,104990.0,104980.0,0.00047617]
[1749912613189,5.52176301,104990.0,104980.0,0.00047617]
[1749912613393,5.52176301,104990.0,104980.0,0.01967617]
[1749912613827,5.48156301,104990.0,104980.0,0.01967617]
[1749912614044,5.67780301,104990.0,104980.0,0.03897617]
[1749912614786,5.58165379,104990.0,104980.0,0.03897617]
[1749912619521,5.55884547,104990.0,104980.0,0.03897617]
[1749912625528,5.58153768,104990.0,104980.0,0.03897617]
[1749912628212,5.58153768,104990.0,104980.0,0.00047617]
[1749912629058,5.17060891,104980.0,104970.0,0.0194]
[1749912629263,5.44566784,104980.0,104970.0,0.01892383]
[1749912629465,5.54181706,104980.0,104970.0,0.01892383]
[1749912630311,0.54005696,104970.0,104960.0,0.0139692]
[1749912630520,5.31062796,104970.0,104960.0,0.02286077]
[1749912630722,5.31062796,104970.0,104960.0,0.0139692]
[1749912630977,5.31062796,104970.0,104960.0,0.02286077]
[1749912631805,5.31162796,104970.0,104960.0,0.02286077]
[1749912632017,5.31162796,104970.0,104960.0,0.04156077]
[1749912632234,5.1637368,104970.0,104960.0,0.31440899]
[1749912632437,5.18278921,104970.0,104960.0,0.29021818]
[1749912632642,5.19231565,104970.0,104960.0,0.29021818]
[1749912632848,5.19231565,104970.0,104960.0,0.29021765]
[1749912633057,5.19024362,104970.0,104960.0,0.29021771]
[1749912633298,5.19024362,104970.0,104960.0,0.2902178]
[1749912633526,5.23088362,104970.0,104960.0,0.2902178]
[1749912633718,5.17119084,104970.0,104960.0,0.2902178]
[1749912633959,5.22135709,104970.0,104960.0,0.2902178]
[1749912634169,5.23088343,104970.0,104960.0,0.2902178]
[1749912634382,5.17119084,104970.0,104960.0,0.29021771]
[1749912634602,0.09173368,104970.0,104960.0,0.28132662]
[1749912634820,0.10125957,104970.0,104960.0,0.28132662]
[1749912635279,0.05109368,104970.0,104960.0,0.28132662]
[1749912635484,0.08220797,104970.0,104960.0,0.28132662]
[1749912635694,0.04156797,104970.0,104960.0,0.28132662]
[1749912635919,0.10125966,104970.0,104960.0,0.28132662]
[1749912636563,0.09173368,104970.0,104960.0,0.28132662]
[1749912636776,0.10125957,104970.0,104960.0,0.28132662]
[1749912636986,0.09173368,104970.0,104960.0,0.43744662]
[1749912637226,0.10125957,104970.0,104960.0,0.43744662]
[1749912637457,0.08220797,104970.0,104960.0,0.43744662]
[1749912637873,0.09173368,104970.0,104960.0,0.43744662]
[1749912638085,0.08220797,104970.0,104960.0,0.43744662]
[1749912640054,0.08220797,104970.0,104960.0,0.5011904]
[1749912640698,0.08220797,104970.0,104960.0,0.43744662]
[1749912640960,0.09173368,104970.0,104960.0,0.43744662]
[1749912645805,0.08220797,104970.0,104960.0,0.43744662]
[1749912646009,0.09173368,104970.0,104960.0,0.43744662]
[1749912646527,0.08220797,104970.0,104960.0,0.43744662]
[1749912649140,0.04156797,104970.0,104960.0,0.43744662]
[1749912649353,0.04156797,104970.0,104960.0,0.59743216]
[1749912649567,0.08220797,104970.0,104960.0,0.59743216]
[1749912650045,0.002,104970.0,104960.0,0.59743216]
[1749912650500,0.002,104970.0,104960.0,1.27182336]
[1749912650719,0.37157635,104990.0,104980.0,0.25888824]
[1749912650938,0.37157635,104990.0,104980.0,0.41476824]
[1749912651149,0.34356074,104990.0,104980.0,0.41476824]
[1749912651571,0.30292074,104990.0,104980.0,0.41476824]
[1749912651794,0.34344074,104990.0,104980.0,0.41476824]
[1749912652010,0.35296473,104990.0,104980.0,0.41576824]
[1749912652224,0.34344074,104990.0,104980.0,0.41576824]
[1749912652940,0.38207535,104990.0,104980.0,0.57454349]
[1749912653157,0.30292074,104990.0,104980.0,0.51201]
[1749912653878,0.00047732,104990.0,104980.0,0.51201]
[1749912654958,0.00047732,104990.0,104980.0,0.51221]
[1749912656706,0.00047732,104990.0,104980.0,1.1866012]
[1749912656920,0.00047732,104990.0,104980.0,1.29729127]
[1749912657565,0.49772395,105020.0,105010.0,0.25672565]
[1749912657798,0.53824395,105020.0,105010.0,0.41276565]
[1749912658005,0.5764617,105020.0,105010.0,0.41276565]
[1749912658444,0.56694053,105020.0,105010.0,0.41276565]
[1749912658666,0.56694053,105020.0,105010.0,0.4707966]
[1749912658892,0.5619657,105020.0,105010.0,0.4707966]
[1749912659339,0.5649657,105020.0,105010.0,0.4707966]
[1749912659553,0.54348832,105020.0,105010.0,0.4707966]
[1749912659762,0.57448687,105020.0,105010.0,0.4707966]
[1749912660018,0.5649657,105020.0,105010.0,0.41276565]
[1749912660747,0.2249657,105020.0,105010.0,0.41276565]
[1749912661257,0.2229657,105020.0,105010.0,0.25672565]
[1749912661518,0.2219657,105020.0,105010.0,0.41268565]
[1749912661728,0.2219657,105020.0,105010.0,0.31894646]
[1749912661947,0.2219657,105020.0,105010.0,0.47490646]
[1749912662163,0.1814457,105020.0,105010.0,0.47490646]
[1749912663365,0.20048832,105020.0,105010.0,0.25672565]
[1749912663580,0.22905339,105020.0,105010.0,0.41264565]
[1749912663799,0.21953158,105020.0,105010.0,0.41264565]
[1749912664490,0.21000986,105020.0,105010.0,0.41264565]
[1749912664711,0.20048832,105020.0,105010.0,0.41264565]
[1749912664930,0.21001004,105020.0,105010.0,0.41264565]
[1749912665173,0.21000995,105020.0,105010.0,0.41264565]
[1749912665824,0.28810114,105020.0,105010.0,0.41264565]
[1749912666013,0.21953176,105020.0,105010.0,0.39354565]
[1749912666667,0.21000995,105020.0,105010.0,0.39354565]
[1749912666884,0.21953249,105020.0,105010.0,0.37494611]
[1749912667099,0.21953249,105020.0,105010.0,0.38446837]
[1749912667538,0.21953231,105020.0,105010.0,0.22854837]
[1749912667760,0.21953231,105020.0,105010.0,0.38442837]
[1749912667978,0.22253231,105020.0,105010.0,0.22854837]
[1749912668234,0.41297276,105020.0,105010.0,0.37490611]
[1749912668669,0.41297276,105020.0,105010.0,0.38442855]
[1749912669390,0.22253285,105020.0,105010.0,0.38442855]
[1749912669605,0.21301086,105020.0,105010.0,0.39395081]
[1749912669826,0.22253276,105020.0,105010.0,0.3939509]
[1749912670060,0.23205475,105020.0,105010.0,0.3939509]
[1749912670289,0.23205475,105020.0,105010.0,0.23807035]
[1749912670509,0.23205475,105020.0,105010.0,0.39391035]
[1749912670749,0.21301086,105020.0,105010.0,0.39391035]
[1749912670964,0.21301086,105020.0,105010.0,0.39387035]
[1749912671402,0.21301086,105020.0,105010.0,0.23807035]
[1749912671657,0.21301086,105020.0,105010.0,0.39383035]
[1749912673736,0.41297276,105020.0,105010.0,0.35570077]
[1749912673942,0.41297276,105020.0,105010.0,0.36522321]
[1749912674368,0.40345113,105020.0,105010.0,0.35570077]
[1749912674934,0.40345113,105020.0,105010.0,0.3652234]
[1749912675792,0.40345113,105020.0,105010.0,0.2095034]
[1749912676326,0.49960035,105020.0,105010.0,0.22854837]
[1749912676533,0.49960035,105020.0,105010.0,0.23807026]
[1749912676731,0.40345113,105020.0,105010.0,0.23807026]
[1749912676946,0.40345113,105020.0,105010.0,0.20950321]
[1749912677773,0.39392941,105020.0,105010.0,0.20950358]
[1749912678173,5.50450041,105020.0,105010.0,0.20950358]
[1749912678383,5.52722074,105020.0,105010.0,0.21902611]
[1749912678979,5.52722074,105020.0,105010.0,0.20950358]
[1749912680224,5.52722074,105020.0,105010.0,0.21902602]
[1749912681070,5.52722074,105020.0,105010.0,0.23972602]
[1749912681310,5.52722074,105020.0,105010.0,0.25992602]
[1749912681510,5.52722074,105020.0,105010.0,0.25040358]
[1749912682294,5.52722074,105020.0,105010.0,0.25992611]
[1749912682496,5.52722074,105020.0,105010.0,0.26944846]
[1749912683427,5.52722074,105020.0,105010.0,0.25992611]
[1749912684816,5.52722074,105020.0,105010.0,0.26944855]
[1749912688227,5.38399279,105020.0,105010.0,0.26944855]
[1749912690352,5.23391243,105020.0,105010.0,0.27897081]
[1749912690584,5.24343433,105020.0,105010.0,0.27897081]
[1749912690800,5.20307433,105020.0,105010.0,0.27897081]
[1749912691010,5.24343433,105020.0,105010.0,0.27897081]
[1749912692037,5.43387424,105020.0,105010.0,0.27897081]
[1749912692244,5.44339623,105020.0,105010.0,0.27897081]
[1749912692486,5.44339623,105020.0,105010.0,0.26944855]
[1749912693322,5.43387469,105020.0,105010.0,0.26944855]
[1749912694171,5.43387469,105020.0,105010.0,0.25992611]
[1749912694388,5.42435288,105020.0,105010.0,0.25992611]
[1749912694933,5.42435288,105020.0,105010.0,0.26944855]
[1749912697579,5.42435288,105020.0,105010.0,0.2789709]
[1749912700183,5.42435288,105020.0,105010.0,0.26944855]
[1749912701023,5.42435288,105020.0,105010.0,0.25040358]
[1749912701215,5.41483098,105020.0,105010.0,0.25040358]
[1749912701405,5.41483098,105020.0,105010.0,0.24088095]
[1749912701658,5.03361323,105020.0,105010.0,0.25992648]
[1749912701879,5.03361323,105020.0,105010.0,0.26944911]
[1749912702098,5.03361323,105020.0,105010.0,0.25992648]
[1749912702984,5.03361323,105020.0,105010.0,0.25040376]
[1749912703200,5.02409124,105020.0,105010.0,0.25040376]
[1749912704123,4.84910624,105020.0,105010.0,0.25040376]
[1749912705386,5.22219295,105020.0,105010.0,0.25040376]
[1749912707433,5.22219295,105020.0,105010.0,0.25992648]
[1749912711678,5.22219295,105020.0,105010.0,0.26944911]
[1749912712900,5.22219295,105020.0,105010.0,0.25992648]
[1749912717337,5.22219295,105020.0,105010.0,0.25040376]
[1749912718415,5.22219295,105020.0,105010.0,0.25992648]
[1749912718649,5.22219295,105020.0,105010.0,0.25040376]
[1749912719326,5.22219295,105020.0,105010.0,0.23135805]
[1749912719540,5.22219295,105020.0,105010.0,0.24088095]
[1749912720420,5.22219295,105020.0,105010.0,0.0409]
[1749912720678,5.25065236,105020.0,105010.0,0.24088095]
[1749912722849,5.25065236,105020.0,105010.0,0.0409]
[1749912726270,5.25065236,105020.0,105010.0,0.24088086]
[1749912726710,5.25065236,105020.0,105010.0,0.0409]
[1749912731386,5.25065236,105020.0,105010.0,0.24088086]
[1749912731611,5.25065236,105020.0,105010.0,0.0504229]
[1749912732233,5.25065236,105020.0,105010.0,0.0409]
[1749912732710,5.25065236,105020.0,105010.0,0.24088095]
[1749912733568,5.25065236,105020.0,105010.0,0.25992648]
[1749912733783,5.25065236,105020.0,105010.0,0.25040376]
[1749912737155,5.0490738,105020.0,105010.0,0.25040376]
[1749912737785,5.0087538,105020.0,105010.0,0.25040376]
[1749912738006,5.0087538,105020.0,105010.0,0.26944911]
[1749912738228,5.0490738,105020.0,105010.0,0.26944911]
[1749912738450,5.06811751,105020.0,105010.0,0.27897164]
[1749912738669,5.01851416,105020.0,105010.0,0.27897164]
[1749912738882,0.44197151,105020.0,105010.0,0.278971]
[1749912739109,0.46101458,105020.0,105010.0,0.278971]
[1749912739757,0.45149268,105020.0,105010.0,0.278971]
[1749912741074,0.46101458,105020.0,105010.0,0.278971]
[1749912743436,0.08792787,105020.0,105010.0,0.34144372]
[1749912744533,0.07840597,105020.0,105010.0,0.34144372]
[1749912745172,0.01904262,105020.0,105010.0,0.34144372]
[1749912745398,5.68195377,105040.0,105030.0,0.2415425]
[1749912745760,5.97351553,105040.0,105030.0,0.24154268]
[1749912745840,5.97351553,105040.0,105030.0,0.26058385]
[1749912745841,4.96216324,105040.0,105030.0,0.26058385]
[1749912746053,5.33072314,105040.0,105030.0,0.26058385]
[1749912746267,5.32120296,105040.0,105030.0,0.26058385]
[1749912746483,5.33072305,105040.0,105030.0,0.26058385]
[1749912746699,5.33372305,105040.0,105030.0,0.26058385]
[1749912746939,5.33372387,105040.0,105030.0,0.26058385]
[1749912747164,5.34748507,105040.0,105030.0,0.26058385]
[1749912747596,5.35700525,105040.0,105030.0,0.26058385]
[1749912747813,5.5474089,105040.0,105030.0,0.2510634]
[1749912748032,5.35700525,105040.0,105030.0,0.2510634]
[1749912748189,5.34748507,105040.0,105030.0,0.26058385]
[1749912748397,5.35900516,105040.0,105030.0,0.26058385]
[1749912748830,5.31888516,105040.0,105030.0,0.26058385]
[1749912749167,5.35900516,105040.0,105030.0,0.26058385]
[1749912751891,5.34948507,105040.0,105030.0,0.26058385]
[1749912752961,5.35900525,105040.0,105030.0,0.26058385]
[1749912754825,5.2012126,105040.0,105030.0,0.26058385]
[1749912755244,5.19169242,105040.0,105030.0,0.31988586]
[1749912755666,5.20121251,105040.0,105030.0,0.31988586]
[1749912756703,5.22397004,105040.0,105030.0,0.31988586]
[1749912757525,5.20497768,105040.0,105030.0,0.31988586]
[1749912757656,5.22401777,105040.0,105030.0,0.31988586]
[1749912758066,5.41442197,105040.0,105030.0,0.2510634]
[1749912758542,5.41442197,105040.0,105030.0,0.26058403]
[1749912759418,5.07442197,105040.0,105030.0,0.26058403]
[1749912759883,5.05538225,105040.0,105030.0,0.24154277]
[1749912760085,5.05538225,105040.0,105030.0,0.25106367]
[1749912761430,5.05538225,105040.0,105030.0,0.24154277]
[1749912762372,4.8649786,105040.0,105030.0,0.24154277]
[1749912762571,4.8649786,105040.0,105030.0,0.25106367]
[1749912762989,4.85545815,105040.0,105030.0,0.25106367]
[1749912763198,4.87449769,105040.0,105030.0,0.2605843]
[1749912764052,4.8744976,105040.0,105030.0,0.27010484]
[1749912764260,4.8744976,105040.0,105030.0,0.26058448]
[1749912764470,4.8840176,105040.0,105030.0,0.27010511]
[1749912765144,4.66062875,105040.0,105030.0,0.27010511]
[1749912765355,4.66062875,105040.0,105030.0,0.26058448]
[1749912765562,5.11504761,105040.0,105030.0,0.26058448]
[1749912765771,5.12456779,105040.0,105030.0,0.2701052]
[1749912765998,5.11504761,105040.0,105030.0,0.27962583]
[1749912766208,5.11504761,105040.0,105030.0,0.27962538]
[1749912766415,5.10552761,105040.0,105030.0,0.27962538]
[1749912766618,5.11504761,105040.0,105030.0,0.27010484]
[1749912766837,5.10552761,105040.0,105030.0,0.27962538]
[1749912767039,5.10552761,105040.0,105030.0,0.27010484]
[1749912767919,5.0960077,105040.0,105030.0,0.27010484]
[1749912768131,5.0960077,105040.0,105030.0,0.34118741]
[1749912768341,5.10552761,105040.0,105030.0,0.33166696]
[1749912768783,5.0960077,105040.0,105030.0,0.34118741]
[1749912769204,5.0960077,105040.0,105030.0,0.33166696]
[1749912769410,5.0960077,105040.0,105030.0,0.34118741]
[1749912769622,5.5839077,105040.0,105030.0,0.34118741]
[1749912769861,5.5839077,105040.0,105030.0,0.33166696]
[1749912770071,5.5839077,105040.0,105030.0,0.34118741]
[1749912770288,5.5839077,105040.0,105030.0,0.27010448]
[1749912770505,5.59342761,105040.0,105030.0,0.27010448]
[1749912770933,5.5839077,105040.0,105030.0,0.27010448]
[1749912771190,5.5839077,105040.0,105030.0,0.27962493]
[1749912771406,5.5839077,105040.0,105030.0,0.27010448]
[1749912771613,5.5839077,105040.0,105030.0,0.27962493]
[1749912771822,5.5839077,105040.0,105030.0,0.27010448]
[1749912772498,5.58392865,105040.0,105030.0,0.26058394]
[1749912772704,5.59344865,105040.0,105030.0,0.27010448]
[1749912772911,5.58392865,105040.0,105030.0,0.27962493]
[1749912773999,5.58394147,105040.0,105030.0,0.27962493]
[1749912774422,5.58394138,105040.0,105030.0,0.27962493]
[1749912774842,5.5934612,105040.0,105030.0,0.27962493]
[1749912775283,5.5934612,105040.0,105030.0,0.27010448]
[1749912775490,5.60298111,105040.0,105030.0,0.27010448]
[1749912775715,5.62195621,105040.0,105030.0,0.27962493]
[1749912775924,5.61243639,105040.0,105030.0,0.27962493]
[1749912776140,5.62195621,105040.0,105030.0,0.27962493]
[1749912776619,5.62195621,105040.0,105030.0,0.27010448]
[1749912777040,5.62195621,105040.0,105030.0,0.27962493]
[1749912777709,5.62195621,105040.0,105030.0,0.27010448]
[1749912777916,5.62195621,105040.0,105030.0,0.27962493]
[1749912778554,5.61243639,105040.0,105030.0,0.27962493]
[1749912778764,5.62195621,105040.0,105030.0,0.27962493]
[1749912779457,5.61243639,105040.0,105030.0,0.27962493]
[1749912780321,0.40064521,105040.0,105030.0,0.34212341]
[1749912780531,0.40064521,105040.0,105030.0,0.27962493]
[1749912780736,0.44064521,105040.0,105030.0,0.27962493]
[1749912781207,0.44064521,105040.0,105030.0,0.37586669]
[1749912781208,0.06064521,105040.0,105030.0,0.37586669]
[1749912781427,0.00504773,105040.0,105030.0,0.37586669]
[1749912781672,0.00504773,105040.0,105030.0,0.62701591]
[1749912782104,0.00304773,105040.0,105030.0,0.62701591]
[1749912782537,4.773e-05,105040.0,105030.0,0.62801591]
[1749912782740,4.773e-05,105040.0,105030.0,0.62901591]
[1749912791616,0.07041117,105060.0,105050.0,0.26674226]
[1749912791816,5.06322637,105060.0,105050.0,0.42178226]
[1749912792080,5.2764163,105060.0,105050.0,0.25722362]
[1749912792299,5.2764163,105060.0,105050.0,0.43130117]
[1749912792931,5.2814163,105060.0,105050.0,0.43130117]
[1749912793375,5.2814163,105060.0,105050.0,0.44081981]
[1749912793591,5.6214163,105060.0,105050.0,0.44081981]
[1749912794250,5.4310489,105060.0,105050.0,0.44081981]